bitfinex-derivatives/quotes_SOLF0:USTF0_20260222
["timestamp","ask_amount","ask_price","bid_price","bid_amount"]
[1771768641999,14.72683718,83.924,83.841,29.21138333]
[1771768642000,10.7293,83.908,83.841,29.21138333]
[1771768642303,9.42170567,83.907,83.841,29.21138333]
[1771768642503,9.42170567,83.906,83.841,29.21138333]
[1771768642704,9.42170567,83.905,83.841,29.21138333]
[1771768643002,10.7293,83.908,83.841,29.21138333]
[1771768643003,9.42170567,83.904,83.841,29.21138333]
[1771768643203,9.42170567,83.903,83.841,29.21138333]
[1771768643404,9.42170567,83.902,83.841,29.21138333]
[1771768643604,9.42170567,83.901,83.841,29.21138333]
[1771768643904,9.42170567,83.9,83.843,29.24361934]
[1771768644103,10.7293,83.908,83.843,29.24361934]
[1771768644104,9.42170567,83.899,83.843,29.24361934]
[1771768644304,9.42170567,83.898,83.843,29.24361934]
[1771768644602,9.42170567,83.897,83.843,29.24361934]
[1771768644797,9.42170567,83.896,83.843,29.24361934]
[1771768644994,9.42170567,83.895,83.843,29.24361934]
[1771768645199,9.42170567,83.894,83.843,29.24361934]
[1771768645402,10.7293,83.908,83.843,29.24361934]
[1771768645705,10.73,83.902,83.843,29.24361934]
[1771768645903,9.42501966,83.901,83.843,29.24361934]
[1771768646203,9.42501966,83.9,83.843,29.24361934]
[1771768646405,9.42501966,83.899,83.843,29.24361934]
[1771768646600,9.42501966,83.898,83.843,29.24361934]
[1771768646900,9.42501966,83.897,83.843,29.24361934]
[1771768647106,9.42501966,83.896,83.843,29.24361934]
[1771768647306,9.42501966,83.895,83.843,29.24361934]
[1771768647604,9.42501966,83.894,83.843,29.24361934]
[1771768647795,10.73,83.902,83.843,29.24361934]
[1771768647996,9.43452618,83.901,83.843,29.24361934]
[1771768648197,9.43452618,83.9,83.843,29.24361934]
[1771768648503,9.43452618,83.899,83.846,29.185726]
[1771768648697,9.43452618,83.898,83.846,29.185726]
[1771768648901,21.71455399,83.913,83.8,35.79]
[1771768648902,9.43452618,83.897,83.851,29.185726]
[1771768649102,9.43452618,83.896,83.851,29.185726]
[1771768649308,9.43452618,83.895,83.851,29.185726]
[1771768649506,9.43452618,83.894,83.851,29.185726]
[1771768649707,10.7286,83.913,83.851,29.185726]
[1771768649908,9.43532721,83.912,83.851,29.185726]
[1771768650108,9.43532721,83.911,83.851,29.185726]
[1771768650407,9.43532721,83.91,83.851,29.185726]
[1771768650599,9.43532721,83.909,83.851,29.185726]
[1771768650798,9.43532721,83.908,83.851,29.185726]
[1771768651004,9.43532721,83.907,83.851,29.185726]
[1771768651209,9.43532721,83.906,83.851,29.185726]
[1771768651409,9.43532721,83.906,83.85,10.7366]
[1771768651410,9.43532721,83.905,83.853,29.18056749]
[1771768651610,9.43532721,83.904,83.853,29.18056749]
[1771768651810,9.43532721,83.903,83.853,29.18056749]
[1771768652006,9.43532721,83.902,83.853,29.18056749]
[1771768652206,9.43532721,83.901,83.853,29.18056749]
[1771768652403,9.43532721,83.9,83.853,29.18056749]
[1771768652710,373.02703712,83.917,83.8,178.3399179]
[1771768652711,9.43532721,83.899,83.856,29.1805836]
[1771768652910,373.02703712,83.917,83.856,29.1805836]
[1771768653108,9.43411296,83.916,83.856,29.1805836]
[1771768653308,9.43411296,83.915,83.856,29.1805836]
[1771768653509,9.43411296,83.914,83.856,29.1805836]
[1771768653709,9.43411296,83.913,83.856,29.1805836]
[1771768653905,9.43411296,83.912,83.856,29.1805836]
[1771768654112,9.43411296,83.911,83.856,29.1805836]
[1771768654307,9.43411296,83.91,83.856,29.1805836]
[1771768654509,9.43411296,83.909,83.856,29.1805836]
[1771768654709,9.43411296,83.908,83.856,29.1805836]
[1771768654911,9.43411296,83.907,83.856,29.1805836]
[1771768655213,9.43411296,83.906,83.856,29.1805836]
[1771768655414,9.43411296,83.905,83.856,29.1805836]
[1771768655712,9.43411296,83.904,83.856,29.1805836]
[1771768656008,9.43411296,83.903,83.856,29.1805836]
[1771768656213,9.43411296,83.902,83.856,29.1805836]
[1771768656512,10.7283,83.916,83.856,29.1805836]
[1771768656814,9.43728832,83.915,83.856,29.1805836]
[1771768657004,9.43728832,83.914,83.856,29.1805836]
[1771768657208,9.43728832,83.913,83.856,29.1805836]
[1771768657407,9.43728832,83.912,83.856,29.1805836]
[1771768657614,9.43728832,83.911,83.856,29.1805836]
[1771768657814,9.43728832,83.91,83.856,29.1805836]
[1771768658014,9.43728832,83.909,83.856,29.1805836]
[1771768658211,9.43728832,83.908,83.856,29.1805836]
[1771768658412,9.43728832,83.907,83.856,29.1805836]
[1771768658611,9.43728832,83.906,83.856,29.1805836]
[1771768658811,9.43728832,83.905,83.856,29.1805836]
[1771768659013,9.43728832,83.904,83.856,29.1805836]
[1771768659211,9.43728832,83.903,83.856,29.1805836]
[1771768659514,9.43728832,83.902,83.856,29.1805836]
[1771768659715,9.43728832,83.901,83.856,29.1805836]
[1771768659915,9.43728832,83.9,83.856,29.1805836]
[1771768660217,10.7283,83.916,83.856,29.1805836]
[1771768660415,10.729,83.91,83.856,29.1805836]
[1771768660613,9.44317452,83.909,83.856,29.1805836]
[1771768660811,9.44317452,83.908,83.856,29.1805836]
[1771768661114,9.44317452,83.907,83.856,29.1805836]
[1771768661315,10.729,83.91,83.856,29.1805836]
[1771768661316,9.44317452,83.906,83.856,29.1805836]
[1771768661516,9.44317452,83.905,83.856,29.1805836]
[1771768661717,10.729,83.91,83.856,29.1805836]
[1771768661718,9.44317452,83.904,83.856,29.1805836]
[1771768661917,9.44317452,83.903,83.856,29.1805836]
[1771768662115,9.44317452,83.902,83.856,29.1805836]
[1771768662416,9.44317452,83.901,83.856,29.1805836]
[1771768662615,9.44317452,83.9,83.856,29.1805836]
[1771768662816,9.44317452,83.899,83.856,29.1805836]
[1771768663014,9.44317452,83.898,83.856,29.1805836]
[1771768663217,384.01299111,83.917,83.856,29.1805836]
[1771768663518,20.4370866,83.916,83.856,29.1805836]
[1771768663717,9.45113261,83.915,83.856,29.1805836]
[1771768663918,9.45113261,83.914,83.856,29.1805836]
[1771768664119,9.45113261,83.913,83.856,29.1805836]
[1771768664320,9.45113261,83.912,83.856,29.1805836]
[1771768664520,9.45113261,83.911,83.856,29.1805836]
[1771768664815,9.45113261,83.91,83.856,29.1805836]
[1771768665017,9.45113261,83.909,83.856,29.1805836]
[1771768665220,9.45113261,83.908,83.856,29.1805836]
[1771768665422,9.45113261,83.907,83.856,29.1805836]
[1771768665619,9.45113261,83.906,83.856,29.1805836]
[1771768665920,9.45113261,83.905,83.856,29.1805836]
[1771768666120,9.45113261,83.904,83.856,29.1805836]
[1771768666321,9.45113261,83.903,83.858,29.21781517]
[1771768666521,9.45113261,83.902,83.858,29.21781517]
[1771768666718,9.45113261,83.901,83.858,29.21781517]
[1771768666919,9.45113261,83.9,83.858,29.21781517]
[1771768667222,9.45113261,83.899,83.858,29.21781517]
[1771768667424,9.45113261,83.898,83.858,29.21781517]
[1771768667617,9.45113261,83.897,83.858,29.21781517]
[1771768667922,9.45113261,83.896,83.86,29.21108496]
[1771768668117,10.98595399,83.913,83.86,29.21108496]
[1771768668118,9.45113261,83.895,83.86,29.21108496]
[1771768668311,9.45113261,83.894,83.86,29.21108496]
[1771768668514,10.98595399,83.913,83.86,29.21108496]
[1771768668714,9.45988957,83.912,83.86,29.21108496]
[1771768668916,9.45988957,83.911,83.86,29.21108496]
[1771768669123,9.45988957,83.91,83.86,29.21108496]
[1771768669314,9.45988957,83.909,83.86,29.21108496]
[1771768669517,9.45988957,83.908,83.86,29.21108496]
[1771768669713,9.45988957,83.907,83.86,29.21108496]
[1771768669918,9.45988957,83.906,83.86,29.21108496]
[1771768670121,9.45988957,83.905,83.86,29.21108496]
[1771768670314,9.45988957,83.904,83.86,29.21108496]
[1771768670521,9.45988957,83.903,83.863,29.22193715]
[1771768670718,9.45988957,83.902,83.863,29.22193715]
[1771768670921,9.45988957,83.901,83.863,29.22193715]
[1771768671225,9.45988957,83.9,83.865,29.2224502]
[1771768671521,9.45988957,83.899,83.865,29.2224502]
[1771768671823,10.98595399,83.913,83.865,29.2224502]
[1771768671824,9.45988957,83.898,83.865,29.2224502]
[1771768672122,9.45988957,83.897,83.865,29.2224502]
[1771768672320,9.45988957,83.896,83.865,29.2224502]
[1771768672622,9.45988957,83.895,83.865,29.2224502]
[1771768672823,9.45988957,83.894,83.865,29.2224502]
[1771768673024,9.45988957,83.893,83.865,29.2224502]
[1771768673324,10.98595399,83.913,83.868,29.22271479]
[1771768673622,9.46250497,83.912,83.868,29.22271479]
[1771768673822,9.46250497,83.911,83.868,29.22271479]
[1771768674022,9.46250497,83.91,83.868,29.22271479]
[1771768674321,9.46250497,83.909,83.868,29.22271479]
[1771768674622,9.46250497,83.908,83.878,10.7329]
[1771768674821,9.46250497,83.907,83.879,29.22273584]
[1771768675019,9.46250497,83.906,83.879,29.22273584]
[1771768675219,9.46250497,83.905,83.879,29.22273584]
[1771768675419,9.46250497,83.904,83.879,29.22273584]
[1771768675626,9.46250497,83.903,83.879,29.22273584]
[1771768675924,9.46250497,83.902,83.879,29.22273584]
[1771768676222,373.02703712,83.917,83.879,29.22273584]
[1771768676416,9.46260278,83.916,83.879,29.22273584]
[1771768676615,9.46260278,83.915,83.879,29.22273584]
[1771768676813,373.02703712,83.917,83.879,29.22273584]
[1771768676814,9.46260278,83.914,83.879,29.22273584]
[1771768677017,9.46260278,83.913,83.879,29.22273584]
[1771768677221,9.46260278,83.912,83.879,29.22273584]
[1771768677421,9.46260278,83.911,83.879,29.22273584]
[1771768677621,9.46260278,83.91,83.879,29.22273584]
[1771768677816,9.46260278,83.909,83.879,29.22273584]
[1771768678017,9.46260278,83.908,83.879,29.22273584]
[1771768678324,9.46260278,83.907,83.879,29.22273584]
[1771768678522,9.46260278,83.906,83.879,29.22273584]
[1771768678822,9.46260278,83.905,83.879,29.22273584]
[1771768679022,9.46260278,83.904,83.879,29.22273584]
[1771768679326,373.02703712,83.917,83.879,29.22273584]
[1771768679527,9.46230605,83.916,83.879,29.22273584]
[1771768679723,9.46230605,83.915,83.879,29.22273584]
[1771768679923,9.46230605,83.914,83.879,29.22273584]
[1771768680122,9.46230605,83.913,83.879,29.22273584]
[1771768680331,9.46230605,83.912,83.879,29.22273584]
[1771768680626,373.02703712,83.917,83.879,29.22273584]
[1771768680627,9.46230605,83.911,83.879,29.22273584]
[1771768680823,9.46230605,83.91,83.879,29.22273584]
[1771768681022,10.98595399,83.938,83.882,29.27238793]
[1771768681222,10.98595399,83.939,83.882,29.27238793]
[1771768681419,14.72683718,83.956,83.882,29.27238793]
[1771768681725,10.7233,83.955,83.891,29.27703469]
[1771768681926,11.02315174,83.946,83.891,29.27703469]
[1771768682319,11.02315174,83.948,83.891,29.27703469]
[1771768683223,11.02315174,83.949,83.891,29.27703469]
[1771768684231,11.02315174,83.95,83.891,29.27703469]
[1771768685233,11.02315174,83.951,83.891,29.27703469]
[1771768685929,11.02315174,83.967,83.894,29.05004469]
[1771768686232,11.02315174,83.974,83.894,29.05004469]
[1771768686628,11.02315174,83.97,83.896,29.0500318]
[1771768686830,2.07321178,84.001,83.896,29.0500318]
[1771768686831,11.02315174,83.961,83.896,29.0500318]
[1771768687328,11.02315174,83.962,83.896,29.0500318]
[1771768687731,10.7236,83.953,83.896,29.0500318]
[1771768692941,10.7245,83.945,83.896,29.0500318]
[1771768697446,10.7234,83.954,83.896,29.0500318]
[1771768698861,10.7234,83.954,83.843,35.79]
[1771768698862,10.7218,83.967,83.898,29.07859208]
[1771768699157,9.38268099,83.966,83.898,29.07859208]
[1771768699349,9.38268099,83.965,83.898,29.07859208]
[1771768699554,10.7218,83.967,83.898,29.07859208]
[1771768699748,10.7219,83.965,83.9,29.11643623]
[1771768701359,10.7219,83.965,83.902,29.0958835]
[1771768705152,9.37645381,83.964,83.902,29.0958835]
[1771768705357,9.37645381,83.963,83.902,29.0958835]
[1771768705556,9.37645381,83.964,83.902,29.0958835]
[1771768705757,9.37645381,83.963,83.902,29.0958835]
[1771768705958,9.37645381,83.964,83.902,29.0958835]
[1771768706159,9.37645381,83.963,83.902,29.0958835]
[1771768706354,10.7219,83.965,83.902,29.0958835]
[1771768706559,9.3722495,83.964,83.902,29.0958835]
[1771768707162,10.7219,83.965,83.905,29.05026432]
[1771768708765,10.7219,83.965,83.907,29.04692455]
[1771768714269,9.3722495,83.975,83.907,29.04692455]
[1771768714469,9.3722495,83.974,83.907,29.04692455]
[1771768714768,9.3722495,83.973,83.907,29.04692455]
[1771768714972,20.0933495,83.972,83.907,29.04692455]
[1771768715169,9.3722495,83.971,83.907,29.04692455]
[1771768715370,9.34151925,83.97,83.907,29.04692455]
[1771768715566,11.7700569,83.985,83.907,29.04692455]
[1771768715770,9.34419564,83.984,83.907,29.04692455]
[1771768715973,9.34419564,83.983,83.907,29.04692455]
[1771768716271,9.34419564,83.982,83.907,29.04692455]
[1771768716476,9.34419564,83.981,83.907,29.04692455]
[1771768716778,10.7214,83.969,83.907,29.04692455]
[1771768717576,10.7203,83.978,83.911,29.02126812]
[1771768717772,9.3488988,83.977,83.911,29.02126812]
[1771768717972,9.3488988,83.976,83.911,29.02126812]
[1771768718171,9.3488988,83.975,83.911,29.02126812]
[1771768718475,9.3488988,83.974,83.911,29.02126812]
[1771768718678,9.3488988,83.973,83.911,29.02126812]
[1771768718976,9.3488988,83.972,83.911,29.02126812]
[1771768719276,9.3488988,83.971,83.911,29.02126812]
[1771768719575,9.3488988,83.97,83.911,29.02126812]
[1771768719766,10.7203,83.978,83.911,29.02126812]
[1771768719767,9.3488988,83.969,83.911,29.02126812]
[1771768719971,9.3488988,83.968,83.911,29.02126812]
[1771768720172,9.3488988,83.967,83.911,29.02126812]
[1771768720373,9.3488988,83.966,83.911,29.02126812]
[1771768720574,9.3488988,83.965,83.911,29.02126812]
[1771768720774,10.7203,83.978,83.911,29.02126812]
[1771768720972,10.7209,83.973,83.911,29.02126812]
[1771768721271,9.358189,83.972,83.911,29.02126812]
[1771768721474,9.358189,83.971,83.911,29.02126812]
[1771768721676,9.358189,83.97,83.911,29.02126812]
[1771768721870,9.358189,83.969,83.911,29.02126812]
[1771768722174,9.358189,83.968,83.911,29.02126812]
[1771768722374,9.358189,83.967,83.911,29.02126812]
[1771768722673,9.358189,83.966,83.911,29.02126812]
[1771768722868,9.358189,83.965,83.911,29.02126812]
[1771768723068,9.358189,83.964,83.911,29.02126812]
[1771768723275,9.358189,83.963,83.911,29.02126812]
[1771768723474,9.358189,83.962,83.911,29.02126812]
[1771768723676,10.7209,83.973,83.911,29.02126812]
[1771768723971,10.7213,83.97,83.911,29.02126812]
[1771768724170,9.36757713,83.969,83.911,29.02126812]
[1771768724373,10.7217,83.967,83.911,29.02126812]
[1771768724575,9.36757713,83.966,83.911,29.02126812]
[1771768724879,9.36757713,83.965,83.911,29.02126812]
[1771768725078,9.36757713,83.964,83.911,29.02126812]
[1771768725380,9.36757713,83.963,83.915,28.9671015]
[1771768725571,9.36757713,83.962,83.915,28.9671015]
[1771768725774,10.7206,83.976,83.915,28.9671015]
[1771768725775,9.36757713,83.961,83.915,28.9671015]
[1771768726070,9.36757713,83.96,83.915,28.9671015]
[1771768726271,10.7206,83.976,83.915,28.9671015]
[1771768726272,9.36757713,83.959,83.915,28.9671015]
[1771768726477,10.7206,83.976,83.915,28.9671015]
[1771768726679,9.3751333,83.975,83.918,28.96708354]
[1771768726877,9.3751333,83.974,83.918,28.96708354]
[1771768727079,9.3751333,83.973,83.918,28.96708354]
[1771768727274,9.3751333,83.972,83.918,28.96708354]
[1771768727471,9.3751333,83.971,83.918,28.96708354]
[1771768727680,9.3751333,83.97,83.918,28.96708354]
[1771768727883,9.3751333,83.969,83.918,28.96708354]
[1771768728079,9.3751333,83.968,83.918,28.96708354]
[1771768728381,9.3751333,83.967,83.918,28.96708354]
[1771768728575,10.7206,83.976,83.918,28.96708354]
[1771768728576,9.3751333,83.966,83.918,28.96708354]
[1771768728783,21.74205174,83.99,83.924,28.98237445]
[1771768728974,9.37944482,83.989,83.924,28.98237445]
[1771768729172,9.37944482,83.988,83.924,28.98237445]
[1771768729383,9.37944482,83.987,83.927,28.95558364]
[1771768729578,9.37944482,83.986,83.927,28.95558364]
[1771768729883,9.37944482,83.985,83.927,28.95558364]
[1771768730183,11.02315174,83.99,83.93,28.95556636]
[1771768730184,9.37944482,83.984,83.93,28.95556636]
[1771768730482,9.37944482,83.983,83.93,28.95556636]
[1771768730781,9.37944482,83.982,83.93,28.95556636]
[1771768731081,9.37944482,83.981,83.93,28.95556636]
[1771768731282,9.37944482,83.98,83.93,28.95556636]
[1771768731473,9.37944482,83.979,83.93,28.95556636]
[1771768731680,9.37944482,83.978,83.93,28.95556636]
[1771768731879,9.37944482,83.977,83.93,28.95556636]
[1771768732080,9.37944482,83.976,83.93,28.95556636]
[1771768732379,9.37944482,83.975,83.93,28.95556636]
[1771768732582,9.37944482,83.974,83.93,28.95556636]
[1771768732780,9.37944482,83.973,83.93,28.95556636]
[1771768732975,11.02315174,83.991,83.93,28.95556636]
[1771768732976,9.37944482,83.972,83.93,28.95556636]
[1771768733285,11.02315174,83.991,83.93,28.95556636]
[1771768733480,9.37834475,83.99,83.93,28.95556636]
[1771768733685,9.37834475,83.989,83.933,28.95709319]
[1771768733982,9.37834475,83.988,83.933,28.95709319]
[1771768734185,9.37834475,83.987,83.933,28.95709319]
[1771768734378,9.37834475,83.986,83.933,28.95709319]
[1771768734578,9.37834475,83.985,83.933,28.95709319]
[1771768734785,9.37834475,83.984,83.933,28.95709319]
[1771768734986,9.37834475,83.983,83.933,28.95709319]
[1771768735185,9.37834475,83.982,83.933,28.95709319]
[1771768735385,9.37834475,83.981,83.933,28.95709319]
[1771768735585,9.37834475,83.98,83.933,28.95709319]
[1771768735787,9.37834475,83.979,83.933,28.95709319]
[1771768736085,9.37834475,83.978,83.933,28.95709319]
[1771768736283,9.37834475,83.977,83.933,28.95709319]
[1771768736486,9.37834475,83.976,83.933,28.95709319]
[1771768736791,9.37834475,83.975,83.933,28.95709319]
[1771768736986,9.37834475,83.974,83.933,28.95709319]
[1771768737183,9.37834475,83.973,83.933,28.95709319]
[1771768737383,9.37834475,83.972,83.933,28.95709319]
[1771768737587,11.02315174,83.991,83.933,28.95709319]
[1771768737787,9.38260066,83.99,83.933,28.95709319]
[1771768738084,9.38260066,83.989,83.933,28.95709319]
[1771768738287,9.38260066,83.988,83.933,28.95709319]
[1771768738589,9.38260066,83.987,83.933,28.95709319]
[1771768738788,9.38260066,83.986,83.933,28.95709319]
[1771768739085,9.38260066,83.985,83.933,28.95709319]
[1771768739283,9.38260066,83.984,83.933,28.95709319]
[1771768739586,9.38260066,83.983,83.933,28.95709319]
[1771768739787,9.38260066,83.982,83.933,28.95709319]
[1771768740085,9.38260066,83.981,83.933,28.95709319]
[1771768740387,9.38260066,83.98,83.933,28.95709319]
[1771768740685,9.38260066,83.979,83.933,28.95709319]
[1771768740885,9.38260066,83.978,83.933,28.95709319]
[1771768741086,9.38260066,83.977,83.933,28.95709319]
[1771768741288,9.38260066,83.976,83.933,28.95709319]
[1771768741585,9.38260066,83.975,83.933,28.95709319]
[1771768741786,9.38260066,83.974,83.933,28.95709319]
[1771768741987,9.38260066,83.973,83.933,28.95709319]
[1771768742180,9.38260066,83.972,83.933,28.95709319]
[1771768742383,9.38260066,83.971,83.933,28.95709319]
[1771768742584,9.38260066,83.97,83.933,28.95709319]
[1771768742885,9.38260066,83.969,83.933,28.95709319]
[1771768743088,10.7193,83.986,83.933,28.95709319]
[1771768743288,9.39223581,83.985,83.933,28.95709319]
[1771768743491,9.39223581,83.984,83.933,28.95709319]
[1771768743787,9.39223581,83.983,83.933,28.95709319]
[1771768743987,9.39223581,83.982,83.933,28.95709319]
[1771768744189,9.39223581,83.981,83.933,28.95709319]
[1771768744385,9.39223581,83.98,83.933,28.95709319]
[1771768744586,9.39223581,83.979,83.933,28.95709319]
[1771768744795,9.39223581,83.978,83.933,28.95709319]
[1771768744994,9.39223581,83.977,83.933,28.95709319]
[1771768745288,21.74115174,83.996,83.933,28.95709319]
[1771768745493,9.39314687,83.995,83.935,28.96282086]
[1771768745690,11.02315174,83.992,83.935,28.96282086]
[1771768745894,9.39314687,83.991,83.935,28.96282086]
[1771768746090,9.39314687,83.99,83.935,28.96282086]
[1771768746293,9.39314687,83.989,83.935,28.96282086]
[1771768746492,9.39314687,83.988,83.935,28.96282086]
[1771768746796,10.7197,83.983,83.935,28.96282086]
[1771768746995,9.39314687,83.982,83.935,28.96282086]
[1771768747196,9.39314687,83.981,83.935,28.96282086]
[1771768747390,9.39314687,83.98,83.935,28.96282086]
[1771768747696,9.39314687,83.979,83.935,28.96282086]
[1771768747895,9.39314687,83.978,83.935,28.96282086]
[1771768748195,9.39314687,83.977,83.935,28.96282086]
[1771768748395,10.7197,83.983,83.935,28.96282086]
[1771768748396,9.39314687,83.976,83.935,28.96282086]
[1771768748589,9.39314687,83.975,83.935,28.96282086]
[1771768748793,9.39314687,83.974,83.935,28.96282086]
[1771768748994,9.39314687,83.973,83.935,28.96282086]
[1771768749194,10.7197,83.983,83.935,28.96282086]
[1771768749388,10.72,83.981,83.935,28.96282086]
[1771768749698,9.39158751,83.98,83.935,28.96282086]
[1771768749897,9.39158751,83.979,83.935,28.96282086]
[1771768750095,9.39158751,83.978,83.935,28.96282086]
[1771768750300,9.39158751,83.977,83.935,28.96282086]
[1771768750494,9.39158751,83.976,83.935,28.96282086]
[1771768750700,9.39158751,83.975,83.935,28.96282086]
[1771768750900,9.39158751,83.974,83.935,28.96282086]
[1771768751100,9.39158751,83.973,83.935,28.96282086]
[1771768751399,10.72,83.981,83.935,28.96282086]
[1771768751589,9.39266226,83.98,83.935,28.96282086]
[1771768751795,9.39266226,83.979,83.935,28.96282086]
[1771768752001,9.39266226,83.978,83.935,28.96282086]
[1771768752197,9.39266226,83.977,83.935,28.96282086]
[1771768752403,9.39266226,83.976,83.935,28.96282086]
[1771768752601,9.39266226,83.975,83.935,28.96282086]
[1771768752800,9.39266226,83.974,83.935,28.96282086]
[1771768752997,10.72,83.981,83.935,28.96282086]
[1771768752998,9.39266226,83.973,83.935,28.96282086]
[1771768753197,10.72,83.981,83.935,28.96282086]
[1771768753398,9.39307813,83.98,83.935,28.96282086]
[1771768753697,9.39307813,83.979,83.935,28.96282086]
[1771768753898,9.39307813,83.978,83.935,28.96282086]
[1771768754098,9.39307813,83.977,83.935,28.96282086]
[1771768754301,11.02315174,83.992,83.935,28.96282086]
[1771768754302,9.39307813,83.976,83.935,28.96282086]
[1771768754502,9.39307813,83.975,83.935,28.96282086]
[1771768754802,9.39307813,83.974,83.935,28.96282086]
[1771768755002,9.39307813,83.973,83.935,28.96282086]
[1771768755203,11.02315174,83.992,83.935,28.96282086]
[1771768755404,9.39343882,83.991,83.935,28.96282086]
[1771768755701,9.39343882,83.99,83.935,28.96282086]
[1771768755902,9.39343882,83.989,83.935,28.96282086]
[1771768756094,9.39343882,83.988,83.935,28.96282086]
[1771768756300,9.39343882,83.987,83.935,28.96282086]
[1771768756505,9.39343882,83.986,83.935,28.96282086]
[1771768756703,9.39343882,83.985,83.935,28.96282086]
[1771768756906,9.39343882,83.984,83.935,28.96282086]
[1771768757100,9.39343882,83.983,83.935,28.96282086]
[1771768757300,9.39343882,83.982,83.935,28.96282086]
[1771768757500,9.39343882,83.981,83.935,28.96282086]
[1771768757700,9.39343882,83.98,83.935,28.96282086]
[1771768757908,9.39343882,83.979,83.935,28.96282086]
[1771768758208,9.39343882,83.978,83.935,28.96282086]
[1771768758402,9.39343882,83.977,83.937,29.27925523]
[1771768758608,9.39343882,83.976,83.937,29.27925523]
[1771768758905,10.7184,83.993,83.937,29.27925523]
[1771768759107,9.38963742,83.992,83.94,29.27925523]
[1771768759303,9.38963742,83.991,83.94,29.27925523]
[1771768759509,9.38963742,83.99,83.94,29.27925523]
[1771768759712,9.38963742,83.989,83.94,29.27925523]
[1771768760015,9.38963742,83.988,83.94,29.27925523]
[1771768760212,9.38963742,83.987,83.94,29.27925523]
[1771768760410,9.38963742,83.986,83.94,29.27925523]
[1771768760708,9.38963742,83.985,83.942,10.7248]
[1771768760912,9.38963742,83.984,83.943,29.29207445]
[1771768761108,9.38963742,83.983,83.943,29.29207445]
[1771768761412,9.38963742,83.982,83.943,29.29207445]
[1771768761611,9.38963742,83.981,83.943,29.29207445]
[1771768761910,9.38963742,83.98,83.943,29.29207445]
[1771768762112,11.02315174,84.0,83.943,29.29207445]
[1771768762311,9.38869149,83.999,83.943,29.29207445]
[1771768762512,9.38869149,83.998,83.943,29.29207445]
[1771768762702,9.38869149,83.997,83.943,29.29207445]
[1771768762903,9.38869149,83.996,83.943,29.29207445]
[1771768763104,9.38869149,83.995,83.943,29.29207445]
[1771768763308,9.38869149,83.994,83.943,29.29207445]
[1771768763508,9.38869149,83.993,83.943,29.29207445]
[1771768763709,9.38869149,83.992,83.943,29.29207445]
[1771768764004,9.38869149,83.991,83.943,29.29207445]
[1771768764209,9.38869149,83.99,83.943,29.29207445]
[1771768764514,9.38869149,83.989,83.943,29.29207445]
[1771768764709,9.38869149,83.988,83.943,29.29207445]
[1771768764911,9.38869149,83.987,83.943,29.29207445]
[1771768765110,9.38869149,83.986,83.943,29.29207445]
[1771768765313,9.38869149,83.985,83.943,29.29207445]
[1771768765614,9.38869149,83.984,83.943,29.29207445]
[1771768765816,9.38869149,83.983,83.943,29.29207445]
[1771768766011,9.38869149,83.982,83.943,29.29207445]
[1771768766315,9.38869149,83.981,83.943,29.29207445]
[1771768766514,9.38869149,83.98,83.943,29.29207445]
[1771768766811,11.02315174,83.999,83.943,29.29207445]
[1771768767114,10.7173,84.002,83.943,29.29207445]
[1771768767115,9.38595648,83.998,83.943,29.29207445]
[1771768767314,9.38595648,83.997,83.943,29.29207445]
[1771768767514,9.38595648,83.996,83.943,29.29207445]
[1771768767714,9.38595648,83.995,83.943,29.29207445]
[1771768768016,9.38595648,83.994,83.943,29.29207445]
[1771768768212,9.38595648,83.993,83.943,29.29207445]
[1771768768517,11.02315174,83.999,83.943,29.29207445]
[1771768768518,9.38595648,83.992,83.943,29.29207445]
[1771768768716,9.38595648,83.991,83.943,29.29207445]
[1771768768915,9.38595648,83.99,83.943,29.29207445]
[1771768769116,9.38595648,83.989,83.943,29.29207445]
[1771768769318,11.02315174,83.999,83.925,10.727]
[1771768769319,9.38595648,83.988,83.925,29.26940874]
[1771768769615,11.02315174,83.986,83.925,29.26940874]
[1771768769817,9.38595648,83.985,83.925,29.26940874]
[1771768770017,9.38595648,83.984,83.925,29.26940874]
[1771768770320,9.38595648,83.983,83.925,29.26940874]
[1771768770514,9.38595648,83.982,83.925,29.26940874]
[1771768770715,9.38595648,83.981,83.925,29.26940874]
[1771768770915,9.38595648,83.98,83.925,29.26940874]
[1771768771114,9.38595648,83.979,83.925,29.26940874]
[1771768771315,9.38595648,83.978,83.925,29.26940874]
[1771768771618,9.38595648,83.977,83.925,29.26940874]
[1771768771819,9.38595648,83.976,83.925,29.26940874]
[1771768772013,10.721,83.972,83.9,29.122798]
[1771768772215,11.02315174,83.97,83.9,29.122798]
[1771768772519,9.38595648,83.969,83.9,29.122798]
[1771768772720,9.38595648,83.968,83.9,29.122798]
[1771768772911,9.38595648,83.967,83.9,29.122798]
[1771768773113,9.38595648,83.966,83.9,29.122798]
[1771768773315,9.38595648,83.965,83.9,29.122798]
[1771768773516,9.38595648,83.964,83.9,29.122798]
[1771768773716,9.38595648,83.963,83.9,29.122798]
[1771768773918,9.38595648,83.962,83.9,29.122798]
[1771768774112,9.38595648,83.961,83.9,29.122798]